bitfinex/quotes_BTCUSD_20241226
["timestamp","ask_amount","ask_price","bid_price","bid_amount"]
[1735234879842,0.00129932,96224.0,96200.0,0.09087466]
[1735234880043,0.207869,96215.0,96200.0,0.09087466]
[1735234880240,0.00129925,96214.0,96200.0,0.09087466]
[1735234880593,0.00129925,96214.0,96209.0,0.005]
[1735234880897,0.207874,96212.0,96209.0,0.003]
[1735234881102,0.00129925,96211.0,96194.0,0.207912]
[1735234881307,0.20786,96219.0,96201.0,0.207898]
[1735234881458,0.00668296,96210.0,96201.0,0.207898]
[1735234881683,0.00129923,96218.0,96201.0,0.207898]
[1735234881945,0.005,96224.0,96195.0,0.10398632]
[1735234881946,0.005,96224.0,96208.0,0.29875666]
[1735234882247,0.00668296,96217.0,96214.0,0.207868]
[1735234882361,0.415633,96239.0,96209.0,0.002]
[1735234882566,0.0012991,96238.0,96220.0,0.29873066]
[1735234883219,0.1231,96243.0,96221.0,0.207854]
[1735234883220,0.004,96224.0,96221.0,0.207854]
[1735234883424,0.004,96224.0,96212.0,0.02067795]
[1735234883895,0.00129916,96223.0,96212.0,0.02067795]
[1735234884097,0.004,96224.0,96212.0,0.02067795]
[1735234884279,0.02131382,96224.0,96213.0,0.207872]
[1735234884478,0.00129916,96227.0,96213.0,0.207872]
[1735234884682,0.207822,96236.0,96220.0,0.001]
[1735234884880,0.207822,96236.0,96217.0,0.29873666]
[1735234885084,0.20782,96237.0,96218.0,0.207861]
[1735234885285,0.003,96224.0,96218.0,0.207861]
[1735234885564,0.51962632,96237.0,96218.0,0.207861]
[1735234885766,0.005,96236.0,96218.0,0.207861]
[1735234885946,0.03168063,96235.0,96218.0,0.415722]
[1735234886148,0.00669064,96234.0,96218.0,0.415722]
[1735234886548,0.00669064,96233.0,96218.0,0.207861]
[1735234886959,0.00269373,96233.0,96218.0,0.207861]
[1735234887359,0.00630412,96233.0,96218.0,0.207861]
[1735234887683,0.207831,96232.0,96213.0,0.415744]
[1735234887847,0.00129897,96231.0,96218.0,0.001]
[1735234888062,0.00129897,96231.0,96219.0,0.207859]
[1735234888268,0.00630412,96230.0,96219.0,0.207859]
[1735234888634,0.005,96233.0,96223.0,0.207849]
[1735234888845,0.005,96233.0,96223.0,0.415698]
[1735234889047,0.003,96231.0,96227.0,0.20784]
[1735234889178,0.003,96231.0,96227.0,0.20584]
[1735234889403,0.207804,96245.0,96227.0,0.20584]
[1735234889605,0.00828123,96230.0,96227.0,0.20584]
[1735234890012,0.002,96230.0,96228.0,0.0413684]
[1735234890234,0.002,96230.0,96229.0,0.207837]
[1735234891335,0.0002,96249.0,96235.0,0.207823]
[1735234891528,0.00032546,96248.0,96235.0,0.207823]
[1735234891725,0.00628123,96247.0,96235.0,0.207823]
[1735234891935,0.00032546,96248.0,96235.0,0.207823]
[1735234892242,0.00628123,96247.0,96235.0,0.207823]
[1735234892404,0.00032546,96248.0,96239.0,0.207814]
[1735234892605,0.00628123,96246.0,96239.0,0.207814]
[1735234892806,0.00032546,96248.0,96239.0,0.207814]
[1735234893011,0.00628123,96245.0,96239.0,0.207814]
[1735234893221,0.00032546,96248.0,96239.0,0.207814]
[1735234893526,0.00032546,96248.0,96239.0,0.415629]
[1735234893700,0.00032546,96248.0,96241.0,0.207811]
[1735234893899,0.00032546,96248.0,96239.0,0.207814]
[1735234894108,0.003,96247.0,96239.0,0.209814]
[1735234894376,0.00928123,96247.0,96239.0,0.209814]
[1735234894687,0.003,96247.0,96239.0,0.207814]
[1735234895003,0.003,96247.0,96241.0,0.002]
[1735234895637,0.00032546,96248.0,96241.0,0.002]
[1735234895842,0.00628123,96247.0,96241.0,0.002]
[1735234896040,0.00132546,96248.0,96241.0,0.002]
[1735234896245,0.00132546,96248.0,96242.0,0.207809]
[1735234896862,0.00032546,96248.0,96242.0,0.207809]
[1735234897089,0.00132546,96248.0,96242.0,0.207809]
[1735234898169,0.00132546,96248.0,96239.0,0.210814]
[1735234898504,0.02734205,96247.0,96236.0,0.207821]
[1735234898712,0.000171,96245.0,96228.0,0.17127207]
[1735234898911,0.20927288,96245.0,96229.0,0.207837]
[1735234899111,0.00631654,96244.0,96228.0,0.17127207]
[1735234899307,0.00129888,96243.0,96228.0,0.17127207]
[1735234899507,0.00631654,96244.0,96230.0,0.24087466]
[1735234899708,0.000171,96245.0,96244.0,0.207805]
[1735234899935,0.000171,96245.0,96244.0,0.54299132]
[1735234901621,0.000171,96245.0,96244.0,0.56599132]
[1735234902045,0.001171,96245.0,96244.0,0.57499132]
[1735234902247,0.000171,96245.0,96244.0,0.56599132]
[1735234902513,0.009171,96245.0,96244.0,1.1414399]
[1735234902687,0.018171,96245.0,96244.0,1.1424399]
[1735234902893,0.018171,96245.0,96244.0,1.16188552]
[1735234903066,0.009171,96245.0,96244.0,1.16088552]
[1735234903242,0.00032546,96248.0,96247.0,0.1]
[1735234903449,0.00032546,96248.0,96247.0,0.45797264]
[1735234903819,0.00032546,96248.0,96247.0,0.48097264]
[1735234904994,0.00932546,96248.0,96247.0,0.62143146]
[1735234905190,0.01832546,96248.0,96247.0,0.62243146]
[1735234907010,0.01832546,96248.0,96247.0,0.52243146]
[1735234907231,0.01832546,96248.0,96247.0,0.62243146]
[1735234907605,0.01832546,96248.0,96247.0,0.48297264]
[1735234909052,0.01832546,96248.0,96247.0,0.38297264]
[1735234909257,0.01832546,96248.0,96247.0,0.48297264]
[1735234910865,0.01832546,96248.0,96247.0,0.56417264]
[1735234911065,2e-08,96264.0,96263.0,0.357764]
[1735234911266,2e-08,96264.0,96263.0,0.46175032]
[1735234911473,2e-08,96264.0,96263.0,0.48777909]
[1735234912321,0.00200002,96264.0,96263.0,0.50377909]
[1735234912872,0.00200002,96264.0,96263.0,0.52457517]
[1735234913289,0.00200002,96264.0,96263.0,0.4985464]
[1735234916134,0.00200002,96264.0,96263.0,0.03679608]
[1735234916323,0.00200002,96264.0,96263.0,0.016]
[1735234916676,0.00843896,96264.0,96263.0,0.016]
[1735234916902,0.00189341,96264.0,96263.0,0.016]
[1735234917692,0.00833235,96264.0,96263.0,0.016]
[1735234917892,0.00189341,96264.0,96263.0,0.016]
[1735234918060,0.00963094,96264.0,96263.0,0.016]
[1735234918292,0.08643753,96264.0,96263.0,0.009]
[1735234918688,0.207764,96263.0,96243.0,0.207805]
[1735234918988,0.207768,96261.0,96247.0,0.207798]
[1735234919193,0.00773761,96260.0,96247.0,0.207798]
[1735234919450,0.00643894,96260.0,96255.0,0.207781]
[1735234919655,0.00129853,96267.0,96255.0,0.207781]
[1735234919846,0.00643894,96266.0,96255.0,0.207781]
[1735234920047,0.00129853,96265.0,96251.0,0.207789]
[1735234920247,0.207761,96264.0,96251.0,0.207789]
[1735234920446,0.207766,96262.0,96247.0,0.415596]
[1735234920795,0.0012986,96261.0,96247.0,0.207798]
[1735234920935,0.00773754,96261.0,96247.0,0.207798]
[1735234921144,0.00773754,96261.0,96255.0,0.001]
[1735234921914,0.00643894,96261.0,96254.0,0.09087466]
[1735234922092,0.207757,96266.0,96254.0,0.09387466]
[1735234922269,0.207761,96264.0,96255.0,0.001]
[1735234922477,0.00770112,96263.0,96255.0,0.001]
[1735234922674,0.0001708,96260.0,96255.0,0.001]
[1735234923052,0.00640252,96259.0,96255.0,0.001]
[1735234923260,0.2079418,96260.0,96255.0,0.001]
[1735234923477,0.00770112,96259.0,96255.0,0.001]
[1735234923687,0.04234039,96258.0,96254.0,0.09387466]
[1735234923866,0.00640252,96259.0,96254.0,0.09387466]
[1735234924070,0.0001708,96260.0,96254.0,0.00587465]
[1735234924274,0.00640252,96259.0,96255.0,0.003]
[1735234924472,0.00129863,96258.0,96255.0,0.003]
[1735234924679,0.22934059,96257.0,96245.0,8.54e-05]
[1735234924881,0.2078,96247.0,96245.0,8.54e-05]
[1735234925106,0.0076649,96246.0,96245.0,8.54e-05]
[1735234925310,0.0567649,96246.0,96245.0,8.54e-05]
[1735234927924,0.0567649,96246.0,96245.0,8.54e-05]
[1735234928321,0.00636603,96246.0,96245.0,0.0090854]
[1735234928723,0.0014695,96260.0,96245.0,0.0050854]
[1735234928926,0.0001708,96260.0,96247.0,0.207798]
[1735234929228,0.00632326,96259.0,96247.0,0.207798]
[1735234929848,0.0001708,96260.0,96247.0,0.207798]
[1735234930210,0.0001708,96260.0,96254.0,0.207783]
[1735234931083,0.0001708,96260.0,96248.0,0.207796]
[1735234931307,0.0001708,96260.0,96252.0,0.207787]
[1735234931716,0.0001708,96260.0,96254.0,0.007]
[1735234932072,0.0001708,96260.0,96252.0,0.207787]
[1735234932493,0.02096348,96260.0,96252.0,0.207787]
[1735234932919,0.207774,96258.0,96245.0,8.54e-05]
[1735234933271,0.00762193,96257.0,96252.0,0.004]
[1735234933645,0.207779,96256.0,96252.0,0.004]
[1735234933848,0.00631853,96255.0,96252.0,0.004]
[1735234934043,0.00631853,96255.0,96252.0,0.007]
[1735234934344,0.0001708,96260.0,96251.0,0.207789]
[1735234934755,0.00631853,96259.0,96248.0,0.207796]
[1735234935099,0.00631853,96259.0,96245.0,8.54e-05]
[1735234935100,0.20907359,96258.0,96245.0,8.54e-05]
[1735234935305,0.00129859,96258.0,96245.0,0.0050854]
[1735234935477,0.00129859,96258.0,96251.0,8.56e-05]
[1735234935680,0.333387,96252.0,96251.0,8.56e-05]
[1735234935938,0.33974426,96252.0,96251.0,8.56e-05]
[1735234936423,0.52975904,96252.0,96251.0,8.56e-05]
[1735234936998,0.52975904,96252.0,96251.0,0.0030856]
[1735234938015,0.54130799,96252.0,96251.0,0.0030856]
[1735234938215,0.64130799,96252.0,96251.0,8.56e-05]
[1735234938447,0.89130799,96252.0,96251.0,8.56e-05]
[1735234938612,0.89130799,96252.0,96251.0,0.0020856]
[1735234939225,0.207837,96230.0,96215.0,0.2071235]
[1735234939428,0.00129904,96229.0,96215.0,0.20727816]
[1735234939705,0.207839,96228.0,96215.0,0.00015466]
[1735234939953,0.03867967,96227.0,96215.0,0.00015466]
[1735234940153,0.0076563,96227.0,96215.0,0.00015466]
[1735234940369,0.00635726,96227.0,96215.0,0.00015466]
[1735234940744,0.00635726,96227.0,96215.0,0.00115466]
[1735234940971,0.0076563,96227.0,96216.0,0.207865]
[1735234941456,0.00635726,96227.0,96216.0,0.207865]
[1735234941658,0.00635726,96227.0,96220.0,0.207855]
[1735234941859,0.00129904,96232.0,96220.0,0.207855]
[1735234942064,0.00635726,96231.0,96228.0,0.415678]
[1735234942347,0.00129891,96243.0,96231.0,0.207831]
[1735234942500,0.00129891,96243.0,96231.0,0.415664]
[1735234942667,0.00631071,96242.0,96231.0,0.207831]
[1735234942868,0.04279334,96243.0,96231.0,0.207831]
[1735234943225,0.00631137,96242.0,96231.0,0.207831]
[1735234943434,0.20910987,96241.0,96228.0,0.0792]
[1735234943937,0.00631137,96240.0,96228.0,0.0792]
[1735234944114,0.04660176,96239.0,96228.0,0.0792]
[1735234944694,0.00631137,96238.0,96229.0,0.207837]
[1735234944897,0.001,96241.0,96231.0,0.001]
[1735234945100,0.00631137,96240.0,96231.0,0.001]
[1735234945301,0.00761024,96240.0,96226.0,0.207842]
[1735234945501,0.00631137,96240.0,96231.0,0.207832]
[1735234945682,0.00631137,96240.0,96232.0,0.207831]
[1735234945887,0.207805,96244.0,96229.0,0.207836]
[1735234946120,0.207809,96242.0,96229.0,0.207836]
[1735234946543,0.25000154,96242.0,96229.0,0.207836]
[1735234946747,0.00631137,96241.0,96229.0,0.207836]
[1735234947162,0.207813,96240.0,96229.0,0.001]
[1735234947810,0.00631137,96239.0,96229.0,0.002]
[1735234947965,0.00631137,96239.0,96229.0,0.0010856]
[1735234948163,0.04641259,96238.0,96229.0,0.0030856]
[1735234948659,0.00626712,96237.0,96229.0,0.0030856]
[1735234948864,0.00626712,96237.0,96229.0,0.0060856]
[1735234949340,0.00626712,96237.0,96229.0,0.0030856]
[1735234949559,0.00626712,96237.0,96229.0,0.0040856]
[1735234949725,0.04107108,96237.0,96229.0,0.0040856]
[1735234949943,0.04107108,96237.0,96229.0,0.0070856]
[1735234950149,0.04107108,96237.0,96229.0,8.56e-05]
[1735234950351,0.04107108,96237.0,96229.0,0.0040856]
[1735234950554,0.04107108,96237.0,96229.0,0.0080856]
[1735234951390,0.04107108,96237.0,96229.0,0.0040856]
[1735234951590,0.04219254,96236.0,96229.0,0.0040856]
[1735234951753,0.04219254,96236.0,96229.0,8.56e-05]
[1735234951754,0.207824,96235.0,96229.0,8.56e-05]
[1735234951968,0.207835,96230.0,96229.0,0.0040856]
[1735234952174,0.207835,96230.0,96229.0,0.0080856]
[1735234952617,0.21410212,96230.0,96229.0,0.0040856]
[1735234953245,0.21410212,96230.0,96229.0,8.56e-05]
[1735234953447,0.21410212,96230.0,96229.0,0.0090856]
[1735234953807,0.21410212,96230.0,96229.0,0.0040856]
[1735234954339,0.21410212,96230.0,96229.0,8.56e-05]
[1735234954936,0.00626712,96230.0,96215.0,0.00015466]
[1735234955244,0.207835,96230.0,96229.0,0.002]
[1735234955405,0.21410212,96230.0,96229.0,0.002]
[1735234955605,0.21410212,96230.0,96216.0,0.207865]
[1735234955606,0.207845,96226.0,96216.0,0.207865]
[1735234956096,0.00626712,96225.0,96216.0,0.207865]
[1735234956301,0.00626712,96225.0,96215.0,0.00015466]
[1735234956830,0.00626712,96225.0,96216.0,0.005]
[1735234957163,0.00626712,96225.0,96216.0,0.007]
[1735234957581,0.00626712,96225.0,96216.0,0.003]
[1735234958178,0.00626712,96225.0,96215.0,0.20801966]
[1735234958482,0.00626712,96225.0,96215.0,0.21001966]
[1735234959110,0.207848,96224.0,96215.0,0.00215466]
[1735234959305,0.00624967,96223.0,96215.0,0.00215466]
[1735234959579,0.00624967,96223.0,96216.0,0.002]
[1735234959989,0.207844,96226.0,96216.0,0.002]
[1735234960304,0.207844,96226.0,96217.0,0.207863]
[1735234960508,0.00624967,96225.0,96217.0,0.207863]
[1735234960872,0.00624967,96225.0,96216.0,0.207865]
[1735234962113,0.207823,96236.0,96217.0,0.10398632]
[1735234962314,0.00624967,96235.0,96220.0,0.09087466]
[1735234962529,0.00624967,96235.0,96224.0,0.207847]
[1735234963021,0.00624967,96235.0,96217.0,0.10598632]
[1735234963225,0.207826,96234.0,96224.0,0.207846]
[1735234963429,0.0001712,96237.0,96228.0,0.207839]
[1735234963666,0.001,96235.0,96228.0,0.207839]
[1735234963873,0.00625059,96234.0,96228.0,0.415678]
[1735234964078,0.00625059,96234.0,96232.0,0.019829]
[1735234964282,0.0001712,96237.0,96231.0,0.207832]
[1735234964283,0.001,96235.0,96231.0,0.207832]
[1735234964435,0.001,96235.0,96231.0,0.282832]
[1735234964869,0.002,96235.0,96231.0,0.282832]
[1735234965642,0.002,96235.0,96232.0,0.207829]
[1735234966045,0.0001712,96237.0,96234.0,0.207826]
[1735234966255,0.0001712,96237.0,96234.0,0.415652]
[1735234967286,0.001,96235.0,96234.0,0.207826]
[1735234967486,0.001,96235.0,96234.0,0.216826]
[1735234967723,0.0001712,96237.0,96234.0,0.424651]
[1735234968105,0.0001712,96237.0,96234.0,0.429651]
[1735234968460,0.19992371,96253.0,96242.0,0.207808]
[1735234968874,0.00624838,96252.0,96242.0,0.415617]
[1735234969083,0.207778,96257.0,96234.0,0.212825]
[1735234969281,0.207778,96257.0,96245.0,0.2078]
[1735234969549,0.207778,96257.0,96235.0,0.415648]
[1735234969663,0.207778,96257.0,96242.0,0.207807]
[1735234969861,0.00624838,96256.0,96242.0,0.210807]
[1735234970062,0.207778,96257.0,96242.0,0.207807]
[1735234970266,0.007592,96256.0,96243.0,0.041562]
[1735234970465,0.00129874,96256.0,96245.0,0.210801]
[1735234970767,0.207778,96257.0,96245.0,0.210801]
[1735234971199,0.2079418,96260.0,96245.0,0.207801]
[1735234971361,0.00129863,96259.0,96245.0,0.207801]
[1735234971570,0.00759189,96259.0,96245.0,0.207801]
[1735234971776,0.00759189,96259.0,96245.0,0.26320547]
[1735234972287,0.207774,96258.0,96245.0,0.207801]
[1735234972667,0.00629326,96257.0,96249.0,0.207793]
[1735234972882,0.00129863,96259.0,96246.0,0.2078]
[1735234973084,0.2079418,96260.0,96254.0,0.207782]
[1735234973085,0.00629326,96256.0,96254.0,0.207782]
[1735234973286,0.0001708,96260.0,96255.0,0.207781]
[1735234973492,0.0001708,96260.0,96259.0,0.207772]
[1735234974248,0.0001708,96260.0,96259.0,0.2037489]
[1735234974797,0.0001708,96260.0,96259.0,0.2805489]
[1735234975990,0.0001708,96260.0,96259.0,0.2825489]
[1735234976221,0.0001708,96260.0,96259.0,0.2805489]
[1735234976419,0.0001708,96260.0,96259.0,0.4395489]
[1735234976908,0.0011708,96260.0,96259.0,0.4455489]
[1735234977266,0.0001708,96260.0,96259.0,0.4305489]
[1735234977633,0.0001708,96260.0,96259.0,0.53575009]
[1735234977853,0.0001708,96260.0,96259.0,0.60733522]
[1735234979206,0.0001708,96260.0,96259.0,0.61333522]
[1735234979388,0.0011708,96260.0,96259.0,0.58733522]
[1735234979934,0.0011708,96260.0,96259.0,0.59633522]
[1735234980171,0.0011708,96260.0,96259.0,0.015]
[1735234980367,0.0011708,96260.0,96259.0,0.009]
[1735234980368,0.0001708,96260.0,96259.0,0.009]
[1735234980568,0.00660133,96260.0,96259.0,0.009]
[1735234980737,0.0011708,96260.0,96259.0,0.016]
[1735234980944,0.00758903,96260.0,96259.0,0.016]
[1735234981142,0.0011708,96260.0,96259.0,0.016]
[1735234981353,0.02848251,96260.0,96259.0,0.016]
[1735234981555,0.10026265,96260.0,96259.0,0.016]
[1735234981756,0.085788,96260.0,96259.0,0.016]
[1735234981958,0.008888,96260.0,96259.0,0.016]
[1735234982320,0.007888,96260.0,96259.0,0.009]
[1735234982511,0.00758933,96260.0,96259.0,0.015]
[1735234982684,0.00758933,96260.0,96259.0,0.006]
[1735234983080,0.00758933,96260.0,96259.0,0.009]
[1735234983306,0.00758933,96260.0,96259.0,0.006]
[1735234983508,0.00658933,96260.0,96250.0,0.09087466]
[1735234983710,0.0001708,96260.0,96249.0,0.207793]
[1735234983944,0.0001708,96260.0,96259.0,0.001]
[1735234984124,0.04316945,96260.0,96259.0,0.001]
[1735234984292,0.04958798,96260.0,96259.0,0.001]
[1735234984874,0.00658933,96260.0,96259.0,0.001]
[1735234985895,0.00658933,96260.0,96252.0,0.207787]
[1735234986106,0.0001708,96260.0,96252.0,0.207787]
[1735234986307,0.0001708,96260.0,96257.0,0.207776]
[1735234986981,0.0001708,96260.0,96259.0,0.0050856]
[1735234987186,0.0001708,96260.0,96259.0,0.0020856]
[1735234987385,0.0001708,96260.0,96259.0,8.56e-05]
[1735234989208,0.0001708,96260.0,96259.0,0.0020856]
[1735234989405,0.0001708,96260.0,96259.0,0.18697192]
[1735234989605,0.0001708,96260.0,96259.0,0.33697192]
[1735234992196,0.0001708,96260.0,96259.0,0.33297192]
[1735234992395,0.0001708,96260.0,96259.0,0.34197192]
[1735234992719,0.0001708,96260.0,96259.0,0.33797192]
[1735234992923,0.0001708,96260.0,96259.0,0.33297192]
[1735234993144,0.0001708,96260.0,96259.0,0.34197192]
[1735234993287,0.0001708,96260.0,96259.0,0.34797192]
[1735234993685,0.0001708,96260.0,96259.0,0.33297192]
[1735234994118,0.0001708,96260.0,96259.0,0.34797192]
[1735234994762,0.0001708,96260.0,96259.0,0.2439856]
[1735234994960,0.0001708,96260.0,96259.0,0.0939856]
[1735234995318,0.0001708,96260.0,96259.0,0.0789856]
[1735234995523,0.0001708,96260.0,96259.0,0.33297192]
[1735234995728,0.0011708,96260.0,96259.0,0.2439856]
[1735234995939,0.0011708,96260.0,96259.0,0.0060856]
[1735234996173,0.0011708,96260.0,96259.0,0.0090856]
[1735234996421,0.0001708,96260.0,96259.0,0.0090856]
[1735234996704,0.006469,96260.0,96259.0,0.0150856]
[1735234996857,0.006469,96260.0,96259.0,0.0240856]
[1735234997055,0.006469,96260.0,96259.0,0.0180856]
[1735234997262,0.006469,96260.0,96259.0,0.0240856]
[1735234997468,0.007469,96260.0,96259.0,0.0240856]
[1735234998072,0.0289921,96260.0,96259.0,0.0240856]
[1735234999165,0.0289921,96260.0,96235.0,0.207823]
[1735234999166,0.207772,96259.0,96235.0,0.207823]
[1735234999439,0.207772,96259.0,96240.0,0.09087466]
[1735234999645,0.207772,96259.0,96244.0,0.207804]
[1735234999845,0.00226397,96258.0,96244.0,0.207804]
[1735235000066,0.00589478,96258.0,96244.0,0.415609]
[1735235001083,0.00589478,96258.0,96248.0,0.09087466]
[1735235001231,0.00589478,96258.0,96252.0,0.207787]
[1735235001627,0.0001708,96260.0,96252.0,0.207787]
[1735235001842,0.0001708,96260.0,96256.0,0.207778]
[1735235002264,0.0001708,96260.0,96252.0,0.207787]
[1735235002613,0.00585955,96259.0,96252.0,0.212787]
[1735235002826,0.00585955,96259.0,96252.0,0.207787]
[1735235003251,0.00585955,96259.0,96256.0,0.004]
[1735235003398,0.00585955,96259.0,96252.0,0.207787]
[1735235003866,0.00585955,96259.0,96252.0,0.211787]
[1735235004189,0.00585955,96259.0,96256.0,0.207778]
[1735235004607,0.0001708,96260.0,96256.0,0.207778]
[1735235005223,0.0001708,96260.0,96253.0,0.207785]
[1735235005224,0.0001708,96260.0,96259.0,0.207772]
[1735235005422,0.0001708,96260.0,96259.0,0.31175832]
[1735235006428,0.0001708,96260.0,96259.0,0.31575832]
[1735235006713,0.0001708,96260.0,96259.0,0.31775832]
[1735235006910,0.0001708,96260.0,96259.0,0.006]
[1735235007720,0.00604485,96260.0,96259.0,0.006]
[1735235007907,0.0001708,96260.0,96259.0,0.006]
[1735235008843,0.0001708,96260.0,96259.0,0.0060856]
[1735235009543,0.03641245,96260.0,96259.0,0.0060856]
[1735235009863,0.00732857,96260.0,96259.0,0.0060856]
[1735235010097,0.00732857,96260.0,96259.0,0.0040856]
[1735235011253,0.00732857,96260.0,96259.0,8.56e-05]
[1735235012757,0.00732857,96260.0,96243.0,0.01797407]
[1735235012946,0.207793,96250.0,96243.0,0.01797407]
[1735235013140,0.00583747,96249.0,96243.0,0.01797407]
[1735235013369,0.207793,96250.0,96243.0,0.01797407]
[1735235013728,0.00583747,96249.0,96243.0,0.01797407]
[1735235013949,0.00129869,96248.0,96239.0,0.15]
[1735235014152,0.207793,96250.0,96233.0,0.26708165]
[1735235014356,0.00713623,96249.0,96231.0,8.56e-05]
[1735235014577,0.20783,96233.0,96231.0,8.56e-05]
[1735235014750,0.00129897,96232.0,96231.0,8.56e-05]
[1735235015091,0.00711708,96232.0,96231.0,8.56e-05]
[1735235015909,0.00581811,96232.0,96231.0,8.56e-05]
[1735235016112,0.00581811,96232.0,96231.0,0.0010856]
[1735235016328,0.00581811,96232.0,96231.0,8.56e-05]
[1735235016467,0.00581811,96232.0,96231.0,0.0010856]
[1735235016673,0.00581811,96232.0,96231.0,0.0020856]
[1735235016912,0.00711716,96232.0,96231.0,0.0010856]
[1735235017382,0.00711716,96232.0,96231.0,8.56e-05]
[1735235017515,0.00711716,96232.0,96231.0,0.0010856]
[1735235018711,0.00581811,96232.0,96231.0,0.0010856]
[1735235018919,0.00681811,96232.0,96231.0,8.56e-05]
[1735235019125,0.001,96232.0,96231.0,8.56e-05]
[1735235019380,0.001,96232.0,96231.0,0.10407192]
[1735235019626,0.207774,96259.0,96232.0,0.15]
[1735235019854,0.207774,96259.0,96246.0,0.2078]
[1735235020055,0.00579941,96253.0,96246.0,0.4156]
[1735235020230,0.207774,96259.0,96246.0,0.4156]
[1735235022402,0.0001708,96260.0,96250.0,0.207791]
[1735235022600,0.0001708,96260.0,96250.0,0.415582]
[1735235024300,0.0001708,96260.0,96250.0,0.207791]
[1735235024512,0.207778,96257.0,96248.0,0.081]
[1735235024716,0.04187166,96254.0,96250.0,0.01]
[1735235024919,0.00581177,96253.0,96250.0,0.01]
[1735235025357,0.00581177,96253.0,96250.0,0.004]
[1735235025674,0.00015457,96254.0,96250.0,0.004]
[1735235026105,0.00015457,96254.0,96250.0,0.007]
[1735235026313,0.00015457,96254.0,96251.0,0.20779]
[1735235026525,0.00115457,96254.0,96251.0,0.20779]
[1735235027041,0.00015457,96254.0,96251.0,0.20779]
[1735235027991,0.20709137,96262.0,96251.0,0.20779]
[1735235028198,0.001,96253.0,96251.0,0.20779]
[1735235028640,0.2072038,96262.0,96251.0,0.20779]
[1735235028845,0.00011243,96262.0,96250.0,0.004]
[1735235029000,0.00581177,96261.0,96255.0,0.207781]
[1735235029198,0.00581177,96261.0,96255.0,0.21898697]
[1735235029432,0.00581177,96261.0,96255.0,0.01120597]
[1735235029639,0.00581177,96261.0,96252.0,0.207787]
[1735235031195,0.00581177,96261.0,96255.0,0.004]
[1735235032245,0.00129851,96260.0,96255.0,0.004]
[1735235032416,0.0497,96258.0,96240.0,0.15]
[1735235032618,0.207779,96256.0,96255.0,0.002]
[1735235032960,0.207779,96256.0,96255.0,0.006]
[1735235033253,0.42142017,96256.0,96255.0,0.002]
[1735235033661,0.52540649,96256.0,96255.0,0.002]
[1735235033896,0.30779,96251.0,96250.0,8.56e-05]
[1735235034096,0.48837632,96251.0,96250.0,8.56e-05]
[1735235034377,0.207831,96232.0,96222.0,0.09313933]
[1735235034509,0.20913201,96231.0,96222.0,0.09313933]
[1735235034716,0.207842,96227.0,96222.0,0.09313933]
[1735235034925,0.207842,96227.0,96215.0,0.2290763]
[1735235034926,0.207851,96223.0,96215.0,0.0212093]
[1735235035318,0.207842,96227.0,96216.0,0.15]
[1735235035521,0.207854,96221.0,96215.0,0.0212093]
[1735235035646,0.207851,96223.0,96216.0,0.00015457]
[1735235035849,0.00582803,96220.0,96216.0,0.00015457]
[1735235036169,0.00582803,96219.0,96216.0,0.00015457]
[1735235036559,0.001,96223.0,96216.0,0.00015457]
[1735235036745,0.00582803,96222.0,96216.0,0.15015457]
[1735235036979,0.001,96223.0,96216.0,0.15015457]
[1735235037400,0.207845,96226.0,96216.0,0.15015457]
[1735235037856,0.00582803,96225.0,96216.0,0.15015457]
[1735235038212,0.207848,96224.0,96216.0,0.00315457]
[1735235038901,0.00582803,96223.0,96216.0,0.00515457]
[1735235039103,0.00582803,96223.0,96216.0,0.00215457]
[1735235039475,0.00582803,96223.0,96216.0,0.00515457]
[1735235039680,0.00582803,96223.0,96216.0,0.15515457]
[1735235039883,0.00582803,96223.0,96216.0,0.00515457]
[1735235040084,0.00582803,96223.0,96216.0,0.00015457]
[1735235040506,0.207844,96226.0,96216.0,0.15]
[1735235040719,0.00576858,96225.0,96216.0,0.152]
[1735235040929,0.00576858,96225.0,96216.0,0.156]
[1735235041120,0.00576858,96225.0,96217.0,0.207863]
[1735235041280,0.00129907,96229.0,96218.0,0.15]
[1735235041501,0.00576858,96228.0,96219.0,0.19486098]
[1735235041695,0.0012989,96246.0,96226.0,0.207843]
[1735235041898,0.207812,96241.0,96226.0,0.207843]
[1735235042114,0.00129889,96240.0,96219.0,0.207857]
[1735235042317,0.207822,96236.0,96223.0,0.207849]
[1735235042814,0.00576858,96235.0,96223.0,0.207849]
[1735235043102,0.207826,96234.0,96223.0,0.207849]
[1735235043696,0.00576858,96233.0,96223.0,0.207849]
[1735235044757,0.207831,96232.0,96219.0,0.207857]
[1735235045142,0.00576858,96231.0,96223.0,0.001]
[1735235045347,0.04437806,96230.0,96219.0,0.207857]
[1735235045511,0.21489255,96229.0,96223.0,0.001]
[1735235045830,0.00575556,96229.0,96223.0,0.003]
[1735235046052,0.00575556,96229.0,96226.0,0.02030376]
[1735235046239,0.23062661,96228.0,96226.0,0.02030376]
[1735235046439,0.207844,96226.0,96223.0,0.003]
[1735235047055,0.207848,96224.0,96223.0,0.001]
[1735235047295,0.207848,96224.0,96216.0,8.56e-05]
[1735235047296,0.207863,96217.0,96216.0,8.56e-05]
[1735235047509,0.44814925,96217.0,96216.0,8.56e-05]
[1735235047677,0.45389013,96217.0,96216.0,8.56e-05]
[1735235048259,0.55389013,96217.0,96216.0,8.56e-05]
[1735235048491,0.55689013,96217.0,96216.0,8.56e-05]
[1735235048895,0.55389013,96217.0,96216.0,8.56e-05]
[1735235049122,0.1,96206.0,96181.0,0.02075988]
[1735235049340,0.1,96206.0,96174.0,0.09322234]
[1735235049341,0.207906,96197.0,96196.0,0.00015474]
[1735235049545,0.39139232,96197.0,96196.0,0.00015474]
[1735235049745,0.39700548,96197.0,96196.0,0.00015474]
[1735235050363,0.49700548,96197.0,96196.0,0.00015474]
[1735235050745,0.50000548,96197.0,96196.0,0.00015474]
[1735235050947,0.22454601,96197.0,96196.0,0.00015474]
[1735235051153,0.22454601,96197.0,96196.0,0.00115474]
[1735235051324,0.22454601,96197.0,96196.0,0.00315474]
[1735235051525,0.22454601,96197.0,96196.0,0.00215474]
[1735235051526,0.39514149,96197.0,96196.0,0.00215474]
[1735235051706,0.32853233,96197.0,96196.0,0.00115474]
[1735235052198,0.32853233,96197.0,96196.0,0.00215474]